Workbook

Sheet NSU
B1: Johanna Moisander | E1: 15.4.1999 Tampere
B2: SUPERPESIS | E2: Runkosarja | I2: Kärkilyönnit (KL), pesänvälit | P2: Ylempi loppusarja | U2: Alempi loppusarja | AB2: Arvo-ottelut ja mitalit
B3: Vuosi | C3: Sija | D3: Seura | E3: OTT | F3: KUN | G3: LÖI | H3: TOI | I3: KL | J3: 0 > 1 | K3: 1 > 2 | L3: 2 > 3 | M3: 3 > k | N3: KL-% | P3: OTT | Q3: KUN | R3: LÖI | S3: TOI | T3: KL | U3: OTT | V3: KUN | W3: LÖI | X3: TOI | Y3: KL | Z3: IL | AA3: LL | AB3: Halli | AC3: K | AD3: H | AE3: P
B4: 2017 | D4: Räpsä | F4: suomensarja
B5: 2018 | D5: Räpsä | F5: suomensarja
B6: 2019 | D6: Räpsä 2 | F6: suomensarja
B7: 2019 | D7: Räpsä | F7: ykköspesis
B8: 2020 | D8: Räpsä | F8: ykköspesis
B9: 2020 | C9: 2. | D9: Manse PP | E9: 1 | F9: 0 | G9: 0 | H9: 0 | I9: 0 | J9: 0 | K9: 0 | L9: 0 | M9: 0 | N9: 0.0 % | O9: 3 | AD9: 1
B10: 2021 | C10: 11. | D10: MyVe | E10: 22 | F10: 1 | G10: 14 | H10: 2 | I10: 66 | J10: 3 | K10: 14 | L10: 34 | M10: 15 | N10: 52.0 % | O10: 127 | U10: 3 | V10: 0 | W10: 2 | X10: 1 | Y10: 7
B11: 2022 | C11: 5. | D11: Jalas | F11: ykköspesis
B12: Yhteensä | E12: =SUM(E4:E11) -> 23 | F12: 1 | G12: 14 | H12: 2 | I12: 66 | J12: 3 | K12: 14 | L12: 34 | M12: 15 | N12: =PRODUCT(I12/O12) -> 50.8 % | O12: =SUM(O4:O11) -> 130 | P12: 0 | Q12: 0 | R12: 0 | S12: 0 | T12: 0 | U12: 3 | V12: 0 | W12: 2 | X12: 1 | Y12: 7 | Z12: 0 | AA12: 0 | AB12: 0 | AC12: 0 | AD12: 1 | AE12: 0
B13: Pesispörssi | D13: =SUM(F12:H12)+((I12-F12-G12)/3)+(E12/3)+(Z12*25)+(AA12*25)+(AB12*10)+(AC12*25)+(AD12*20)+(AE12*15)-20 -> 41.7
B15: URA SUPERISSA | E15: OTT | F15: KUN | G15: LÖI | H15: TOI | I15: KL | K15: ka/L | L15: ka/T | M15: ka/KL | N15: K - % | P15: ENSIMMÄISET
B16: Runkosarja | E16: =PRODUCT(E12) -> 23 | F16: =PRODUCT(F12) -> 1 | G16: =PRODUCT(G12) -> 14 | H16: =PRODUCT(H12) -> 2 | I16: =PRODUCT(I12) -> 66 | K16: =PRODUCT((F16+G16)/E16) -> 0.65 | L16: =PRODUCT(H16/E16) -> 0.09 | M16: =PRODUCT(I16/E16) -> 2.87 | N16: =PRODUCT(N12) -> 50.8 % | O16: =PRODUCT(O12) -> 130 | P16: Ottelu | R16: 01.08. 2020 MyVe - Manse PP 0-2 (0-8, 0-6) | AA16: 1. ottelu | AC16: 21 v 3 kk 17 pv
B17: Ylempi loppusarja | P17: Lyöty | R17: 13.06. 2021 MyVe - Kirittäret 0-1 (1-4, 4-4) | AA17: 4. ottelu | AC17: 22 v 1 kk 29 pv
B18: Alempi loppusarja | E18: =PRODUCT(U12) -> 3 | F18: =PRODUCT(V12) -> 0 | G18: 2 | H18: 1 | I18: 7 | K18: =PRODUCT((F18+G18)/E18) -> 0.67 | L18: =PRODUCT(H18/E18) -> 0.33 | M18: =PRODUCT(I18/E18) -> 2.33 | N18: =PRODUCT(I18/O18) -> 46.7 % | O18: 15 | P18: Tuotu | R18: 19.06. 2021 SiiPe - MyVe 0-2 (2-5, 1-5) | AA18: 6. ottelu | AC18: 22 v 23 kk 4 pv
B19: KAIKKI | E19: =SUM(E16:E18) -> 26 | F19: =SUM(F16:F18) -> 1 | G19: =SUM(G16:G18) -> 16 | H19: =SUM(H16:H18) -> 3 | I19: =SUM(I16:I18) -> 73 | K19: =PRODUCT((F19+G19)/E19) -> 0.65 | L19: =PRODUCT(H19/E19) -> 0.12 | M19: =PRODUCT(I19/E19) -> 2.81 | N19: =PRODUCT(I19/O19) -> 50.3 % | O19: =SUM(O16:O18) -> 145 | P19: Kunnari | R19: 19.06. 2021 SiiPe - MyVe 0-2 (2-5, 1-5) | AA19: 6. ottelu | AC19: 22 v 23 kk 4 pv
B21: Seurat | D21: Manse PP = Manse PP, Tampere (2003), kasvattajaseura
D22: Räpsä = Hämeenkyrön Räpsä (1981)
D23: Manse PP = Manse PP Edustus, Tampere (2015)
D24: MyVe = Mynämäen Vesa (1920)
D25: Jalas = Jalasjärven Jalas (1914)
